[Event "Titled Tuesday Blitz July 18 Late 2023"]
[White "Prydun, Andriy"]
[Black "Risteski, Emil"]
[WhiteFideId "14145898"]
[BlackFideId "15005267"]
[WhiteElo "2355"]
[BlackElo "2538"]
[Result "0-1"]
[Round "2"]
[TimeControl "180+2"]
[Date "2023.07.18"]
[WhiteClock "0:00:01"]
[BlackClock "0:00:21"]
[Board "130"]

1. e4 {[%clk 0:03:00]}  d6 {[%clk 0:02:57]} 2. d4 {[%clk 0:03:00]}  Nf6 {[%clk 0:02:57]} 3. Nc3 {[%clk 0:02:59]}  e5 {[%clk 0:02:58]} 4. d5 {[%clk 0:02:58]}  c6 {[%clk 0:02:57]} 5. dxc6 {[%clk 0:02:57]}  Nxc6 {[%clk 0:02:57]} 6. Bc4 {[%clk 0:02:57]}  Be7 {[%clk 0:02:55]} 7. Bg5 {[%clk 0:02:57]}  O-O {[%clk 0:02:55]} 8. Nge2 {[%clk 0:02:53]}  Nxe4 {[%clk 0:02:49]} 9. Nxe4 {[%clk 0:02:52]}  Bxg5 {[%clk 0:02:49]} 10. Qxd6 {[%clk 0:02:50]}  Be7 {[%clk 0:02:44]} 11. Qd5 {[%clk 0:02:48]}  Qxd5 {[%clk 0:02:36]} 12. Bxd5 {[%clk 0:02:47]}  Nb4 {[%clk 0:02:35]} 13. Bb3 {[%clk 0:02:47]}  Bf5 {[%clk 0:02:34]} 14. N2g3 {[%clk 0:02:45]}  Bg6 {[%clk 0:02:33]} 15. a3 {[%clk 0:02:39]}  Nc6 {[%clk 0:02:33]} 16. c3 {[%clk 0:02:37]}  Rad8 {[%clk 0:02:29]} 17. h4 {[%clk 0:02:35]}  h6 {[%clk 0:02:26]} 18. h5 {[%clk 0:02:32]}  Bh7 {[%clk 0:02:26]} 19. O-O {[%clk 0:02:10]}  Na5 {[%clk 0:02:27]} 20. Ba2 {[%clk 0:02:09]}  b6 {[%clk 0:02:23]} 21. f4 {[%clk 0:02:08]}  exf4 {[%clk 0:02:19]} 22. Rxf4 {[%clk 0:02:09]}  g5 {[%clk 0:01:55]} 23. Rf3 {[%clk 0:01:19]}  Nc6 {[%clk 0:01:47]} 24. Nf6+ {[%clk 0:01:14]}  Bxf6 {[%clk 0:01:35]} 25. Rxf6 {[%clk 0:01:15]}  Ne5 {[%clk 0:01:35]} 26. Raf1 {[%clk 0:00:50]}  Kg7 {[%clk 0:01:31]} 27. R6f2 {[%clk 0:00:26]}  f6 {[%clk 0:01:27]} 28. Re1 {[%clk 0:00:21]}  Rd7 {[%clk 0:01:21]} 29. Rfe2 {[%clk 0:00:16]}  Rfd8 {[%clk 0:01:19]} 30. Be6 {[%clk 0:00:12]}  Rd1 {[%clk 0:01:15]} 31. Bf5 {[%clk 0:00:12]}  Bg8 {[%clk 0:01:14]} 32. Kf2 {[%clk 0:00:08]}  Bf7 {[%clk 0:01:05]} 33. Rxd1 {[%clk 0:00:07]}  Rxd1 {[%clk 0:01:05]} 34. Bc2 {[%clk 0:00:05]}  Rc1 {[%clk 0:00:36]} 35. Nf5+ {[%clk 0:00:05]}  Kf8 {[%clk 0:00:36]} 36. Nxh6 {[%clk 0:00:05]}  Bxh5 {[%clk 0:00:35]} 37. Rd2 {[%clk 0:00:06]}  Ng4+ {[%clk 0:00:31]} 38. Kg3 {[%clk 0:00:06]}  Nxh6 {[%clk 0:00:31]} 39. Bb3 {[%clk 0:00:04]}  Bf7 {[%clk 0:00:30]} 40. Bxf7 {[%clk 0:00:03]}  Nxf7 {[%clk 0:00:31]} 41. Rd7 {[%clk 0:00:04]}  a5 {[%clk 0:00:30]} 42. Rb7 {[%clk 0:00:04]}  Rc2 {[%clk 0:00:27]} 43. Rxb6 {[%clk 0:00:05]}  Kg7 {[%clk 0:00:28]} 44. a4 {[%clk 0:00:04]}  Kg6 {[%clk 0:00:27]} 45. Kh2 {[%clk 0:00:05]}  g4 {[%clk 0:00:27]} 46. b4 {[%clk 0:00:05]}  axb4 {[%clk 0:00:27]} 47. cxb4 {[%clk 0:00:05]}  Kg5 {[%clk 0:00:28]} 48. a5 {[%clk 0:00:04]}  f5 {[%clk 0:00:28]} 49. a6 {[%clk 0:00:04]}  Ra2 {[%clk 0:00:28]} 50. Rb7 {[%clk 0:00:03]}  Ne5 {[%clk 0:00:28]} 51. a7 {[%clk 0:00:03]}  f4 {[%clk 0:00:27]} 52. Kg1 {[%clk 0:00:03]}  g3 {[%clk 0:00:27]} 53. Kf1 {[%clk 0:00:03]}  f3 {[%clk 0:00:27]} 54. Rb5 {[%clk 0:00:03]}  Kf4 {[%clk 0:00:21]} 55. gxf3 {[%clk 0:00:01]}  g2+ {[%clk 0:00:21]} 56. Kg1 {[%clk 0:00:01]}  Nxf3# {[%clk 0:00:21]} 0-1


[Site "https://www.chess.com"]

[Event "Titled Tuesday Blitz July 18 Late 2023"]
[White "Slovineanu, Viacheslav"]
[Black "Kanyamarala, Tarun"]
[WhiteFideId "13900510"]
[BlackFideId "45004714"]
[WhiteElo "2345"]
[BlackElo "2507"]
[Result "0-1"]
[Round "2"]
[TimeControl "180+2"]
[Date "2023.07.18"]
[WhiteClock "0:00:00"]
[BlackClock "0:00:33"]
[Board "137"]

1. d4 {[%clk 0:03:00]}  Nf6 {[%clk 0:02:59]} 2. Nf3 {[%clk 0:03:00]}  d6 {[%clk 0:02:57]} 3. Nc3 {[%clk 0:02:59]}  Nbd7 {[%clk 0:02:55]} 4. e4 {[%clk 0:02:59]}  e5 {[%clk 0:02:55]} 5. Bc4 {[%clk 0:02:58]}  Be7 {[%clk 0:02:54]} 6. a4 {[%clk 0:02:58]}  O-O {[%clk 0:02:52]} 7. O-O {[%clk 0:02:58]}  c6 {[%clk 0:02:52]} 8. h3 {[%clk 0:02:58]}  exd4 {[%clk 0:02:43]} 9. Qxd4 {[%clk 0:02:31]}  Nc5 {[%clk 0:02:42]} 10. Bf4 {[%clk 0:01:57]}  Be6 {[%clk 0:02:38]} 11. Rad1 {[%clk 0:01:52]}  Qc8 {[%clk 0:02:16]} 12. b4 {[%clk 0:01:26]}  Bxc4 {[%clk 0:02:13]} 13. Qxc4 {[%clk 0:01:26]}  Ne6 {[%clk 0:01:51]} 14. Bxd6 {[%clk 0:01:23]}  Bxd6 {[%clk 0:01:52]} 15. Rxd6 {[%clk 0:01:23]}  Nf4 {[%clk 0:01:51]} 16. e5 {[%clk 0:01:15]}  N6d5 {[%clk 0:01:45]} 17. Nxd5 {[%clk 0:01:14]}  Nxd5 {[%clk 0:01:43]} 18. b5 {[%clk 0:01:06]}  Nb6 {[%clk 0:01:39]} 19. Qb3 {[%clk 0:01:00]}  cxb5 {[%clk 0:01:35]} 20. axb5 {[%clk 0:01:01]}  Qf5 {[%clk 0:01:27]} 21. c4 {[%clk 0:00:56]}  Rac8 {[%clk 0:01:25]} 22. Rc1 {[%clk 0:00:37]}  Qf4 {[%clk 0:01:18]} 23. Qe3 {[%clk 0:00:20]}  Qxe3 {[%clk 0:01:15]} 24. fxe3 {[%clk 0:00:20]}  Nxc4 {[%clk 0:01:14]} 25. Rd7 {[%clk 0:00:21]}  Nxe3 {[%clk 0:01:13]} 26. Rxc8 {[%clk 0:00:20]}  Rxc8 {[%clk 0:01:13]} 27. Rxb7 {[%clk 0:00:20]}  h6 {[%clk 0:01:12]} 28. Rxa7 {[%clk 0:00:18]}  Rc2 {[%clk 0:01:10]} 29. Ne1 {[%clk 0:00:17]}  Re2 {[%clk 0:01:09]} 30. Ra1 {[%clk 0:00:17]}  Rb2 {[%clk 0:01:07]} 31. Ra5 {[%clk 0:00:15]}  Nc4 {[%clk 0:01:04]} 32. Ra8+ {[%clk 0:00:14]}  Kh7 {[%clk 0:01:04]} 33. Rb8 {[%clk 0:00:13]}  Nxe5 {[%clk 0:01:03]} 34. b6 {[%clk 0:00:13]}  Nd7 {[%clk 0:01:03]} 35. Rb7 {[%clk 0:00:13]}  Nxb6 {[%clk 0:01:02]} 36. Rxf7 {[%clk 0:00:13]}  Nd5 {[%clk 0:01:00]} 37. Rf2 {[%clk 0:00:11]}  Rb1 {[%clk 0:00:59]} 38. Rf1 {[%clk 0:00:11]}  Ne3 {[%clk 0:00:59]} 39. Kf2 {[%clk 0:00:10]}  Nxf1 {[%clk 0:00:58]} 40. Kxf1 {[%clk 0:00:10]}  Kg6 {[%clk 0:00:58]} 41. Kf2 {[%clk 0:00:10]}  Rb2+ {[%clk 0:00:57]} 42. Kg3 {[%clk 0:00:10]}  Kf5 {[%clk 0:00:55]} 43. Nf3 {[%clk 0:00:10]}  Ke4 {[%clk 0:00:56]} 44. Kh2 {[%clk 0:00:08]}  Kf4 {[%clk 0:00:55]} 45. Nh4 {[%clk 0:00:07]}  Ke3 {[%clk 0:00:52]} 46. Kg3 {[%clk 0:00:07]}  Rb5 {[%clk 0:00:51]} 47. Nf3 {[%clk 0:00:07]}  Rf5 {[%clk 0:00:49]} 48. h4 {[%clk 0:00:07]}  Ra5 {[%clk 0:00:36]} 49. Nh2 {[%clk 0:00:04]}  Ke2 {[%clk 0:00:35]} 50. Nf3 {[%clk 0:00:03]}  Kf1 {[%clk 0:00:35]} 51. h5 {[%clk 0:00:02]}  Rxh5 {[%clk 0:00:33]} 52. Nh4 {[%clk 0:00:01]}  Rxh4 {[%clk 0:00:33]} 53. Kxh4 {[%clk 0:00:00]}  Kxg2 {[%clk 0:00:33]} 0-1


[Site "https://www.chess.com"]

[Event "Titled Tuesday Blitz July 18 Late 2023"]
[White "Dubreuil, Julien"]
[Black "Salazar Farias, Luis German"]
[WhiteFideId "621285"]
[BlackFideId "3902170"]
[WhiteElo "2338"]
[BlackElo "2505"]
[Result "0-1"]
[Round "2"]
[TimeControl "180+2"]
[Date "2023.07.18"]
[WhiteClock "0:00:48"]
[BlackClock "0:01:17"]
[Board "138"]

1. c4 {[%clk 0:03:00]}  e6 {[%clk 0:02:53]} 2. g3 {[%clk 0:03:01]}  d5 {[%clk 0:02:53]} 3. Bg2 {[%clk 0:03:01]}  Nf6 {[%clk 0:02:53]} 4. Nf3 {[%clk 0:03:02]}  d4 {[%clk 0:02:53]} 5. e3 {[%clk 0:02:57]}  Nc6 {[%clk 0:02:52]} 6. exd4 {[%clk 0:02:54]}  Nxd4 {[%clk 0:02:50]} 7. Nc3 {[%clk 0:02:54]}  Bc5 {[%clk 0:02:48]} 8. O-O {[%clk 0:02:52]}  O-O {[%clk 0:02:48]} 9. d3 {[%clk 0:02:51]}  Nxf3+ {[%clk 0:02:33]} 10. Qxf3 {[%clk 0:02:50]}  e5 {[%clk 0:02:30]} 11. h3 {[%clk 0:02:43]}  c6 {[%clk 0:02:23]} 12. Be3 {[%clk 0:02:37]}  Bxe3 {[%clk 0:02:18]} 13. fxe3 {[%clk 0:02:36]}  Qxd3 {[%clk 0:02:16]} 14. g4 {[%clk 0:02:16]}  h6 {[%clk 0:01:52]} 15. c5 {[%clk 0:02:10]}  Qc4 {[%clk 0:01:44]} 16. Rac1 {[%clk 0:02:06]}  Qxc5 {[%clk 0:01:27]} 17. Ne4 {[%clk 0:01:45]}  Qe7 {[%clk 0:01:27]} 18. Nxf6+ {[%clk 0:01:40]}  Qxf6 {[%clk 0:01:28]} 19. Qxf6 {[%clk 0:01:37]}  gxf6 {[%clk 0:01:29]} 20. Rxf6 {[%clk 0:01:35]}  Kg7 {[%clk 0:01:29]} 21. Rcf1 {[%clk 0:01:26]}  Be6 {[%clk 0:01:29]} 22. b3 {[%clk 0:01:25]}  a5 {[%clk 0:01:25]} 23. R1f2 {[%clk 0:01:20]}  a4 {[%clk 0:01:23]} 24. b4 {[%clk 0:01:21]}  a3 {[%clk 0:01:23]} 25. Be4 {[%clk 0:01:12]}  Ra4 {[%clk 0:01:19]} 26. h4 {[%clk 0:00:54]}  Rxb4 {[%clk 0:01:18]} 27. Bf5 {[%clk 0:00:48]}  Kxf6 {[%clk 0:01:17]} 0-1


[Site "https://www.chess.com"]

[Event "Titled Tuesday Blitz July 18 Late 2023"]
[White "Melian, Juan Sebastian"]
[Black "ExchangeAB"]
[WhiteFideId "3706575"]
[WhiteElo "2503"]
[BlackElo "2333"]
[Result "0-1"]
[Round "2"]
[TimeControl "180+2"]
[Date "2023.07.18"]
[WhiteClock "0:00:00"]
[BlackClock "0:01:00"]
[Board "139"]

1. b3 {[%clk 0:02:55]}  d5 {[%clk 0:02:57]} 2. Bb2 {[%clk 0:02:56]}  Nf6 {[%clk 0:02:58]} 3. Nf3 {[%clk 0:02:54]}  c6 {[%clk 0:02:58]} 4. g3 {[%clk 0:02:51]}  Bf5 {[%clk 0:02:58]} 5. Bg2 {[%clk 0:02:52]}  h6 {[%clk 0:02:58]} 6. O-O {[%clk 0:02:53]}  e6 {[%clk 0:02:59]} 7. d3 {[%clk 0:02:53]}  Bh7 {[%clk 0:02:59]} 8. Nbd2 {[%clk 0:02:54]}  Nbd7 {[%clk 0:02:59]} 9. Qe1 {[%clk 0:02:55]}  Be7 {[%clk 0:02:59]} 10. e4 {[%clk 0:02:56]}  O-O {[%clk 0:02:59]} 11. Qe2 {[%clk 0:02:56]}  a5 {[%clk 0:02:58]} 12. a3 {[%clk 0:02:48]}  a4 {[%clk 0:02:56]} 13. b4 {[%clk 0:02:47]}  c5 {[%clk 0:02:56]} 14. c3 {[%clk 0:02:45]}  b5 {[%clk 0:02:45]} 15. Rfd1 {[%clk 0:02:41]}  Re8 {[%clk 0:02:36]} 16. e5 {[%clk 0:02:15]}  Nh5 {[%clk 0:02:36]} 17. d4 {[%clk 0:01:49]}  c4 {[%clk 0:02:29]} 18. Ne1 {[%clk 0:01:49]}  g6 {[%clk 0:02:23]} 19. f4 {[%clk 0:01:49]}  Ng7 {[%clk 0:02:22]} 20. Nc2 {[%clk 0:01:49]}  g5 {[%clk 0:02:19]} 21. Ne3 {[%clk 0:01:43]}  gxf4 {[%clk 0:02:14]} 22. gxf4 {[%clk 0:01:44]}  Nf5 {[%clk 0:02:10]} 23. Kh1 {[%clk 0:01:43]}  Kh8 {[%clk 0:02:08]} 24. Rg1 {[%clk 0:01:43]}  Rg8 {[%clk 0:02:08]} 25. Bh3 {[%clk 0:01:42]}  Nxe3 {[%clk 0:02:02]} 26. Qxe3 {[%clk 0:01:43]}  Bh4 {[%clk 0:01:53]} 27. Rg4 {[%clk 0:01:11]}  Rxg4 {[%clk 0:01:52]} 28. Bxg4 {[%clk 0:01:12]}  Qe7 {[%clk 0:01:49]} 29. h3 {[%clk 0:01:07]}  Rg8 {[%clk 0:01:42]} 30. Kh2 {[%clk 0:01:06]}  f5 {[%clk 0:01:28]} 31. exf6 {[%clk 0:00:40]}  Nxf6 {[%clk 0:01:28]} 32. Rg1 {[%clk 0:00:20]}  Ne4 {[%clk 0:01:19]} 33. Bc1 {[%clk 0:00:12]}  Qf6 {[%clk 0:01:17]} 34. Nf3 {[%clk 0:00:07]}  Bf2 {[%clk 0:01:06]} 35. Qe2 {[%clk 0:00:07]}  Bxg1+ {[%clk 0:01:06]} 36. Nxg1 {[%clk 0:00:08]}  Bf5 {[%clk 0:01:02]} 37. Bb2 {[%clk 0:00:00]}  Qg6 {[%clk 0:01:00]} 0-1


[Site "https://www.chess.com"]

[Event "Titled Tuesday Blitz July 18 Late 2023"]
[White "Yeritsyan, Hayk"]
[Black "Arias Igual, Alejandro"]
[WhiteFideId "13307320"]
[BlackFideId "2254905"]
[WhiteElo "2498"]
[BlackElo "2325"]
[Result "1-0"]
[Round "2"]
[TimeControl "180+2"]
[Date "2023.07.18"]
[WhiteClock "0:00:24"]
[BlackClock "0:00:00"]
[Board "144"]

1. d4 {[%clk 0:03:00]}  d5 {[%clk 0:02:58]} 2. Nf3 {[%clk 0:03:01]}  e6 {[%clk 0:02:58]} 3. e3 {[%clk 0:03:01]}  Nf6 {[%clk 0:02:57]} 4. Bd3 {[%clk 0:03:02]}  c5 {[%clk 0:02:55]} 5. c3 {[%clk 0:03:02]}  Nc6 {[%clk 0:02:51]} 6. Nbd2 {[%clk 0:03:02]}  Be7 {[%clk 0:02:48]} 7. Qe2 {[%clk 0:03:01]}  O-O {[%clk 0:02:46]} 8. O-O {[%clk 0:03:01]}  Qc7 {[%clk 0:02:30]} 9. dxc5 {[%clk 0:03:01]}  Bxc5 {[%clk 0:02:27]} 10. e4 {[%clk 0:03:01]}  dxe4 {[%clk 0:02:24]} 11. Nxe4 {[%clk 0:03:02]}  Nxe4 {[%clk 0:02:22]} 12. Qxe4 {[%clk 0:03:03]}  f5 {[%clk 0:02:22]} 13. Qe2 {[%clk 0:03:02]}  Bd7 {[%clk 0:02:19]} 14. Re1 {[%clk 0:03:00]}  Rae8 {[%clk 0:02:17]} 15. Bc4 {[%clk 0:02:59]}  Kh8 {[%clk 0:02:13]} 16. b4 {[%clk 0:02:48]}  Bd6 {[%clk 0:02:06]} 17. Bb2 {[%clk 0:02:46]}  Be7 {[%clk 0:01:51]} 18. Rad1 {[%clk 0:02:31]}  Bc8 {[%clk 0:01:46]} 19. Bb3 {[%clk 0:01:58]}  Bf6 {[%clk 0:01:44]} 20. a3 {[%clk 0:01:56]}  Qf4 {[%clk 0:01:29]} 21. c4 {[%clk 0:01:40]}  Bxb2 {[%clk 0:01:28]} 22. Qxb2 {[%clk 0:01:41]}  e5 {[%clk 0:01:23]} 23. Qd2 {[%clk 0:01:29]}  Qg4 {[%clk 0:01:12]} 24. h3 {[%clk 0:01:26]}  Qh5 {[%clk 0:01:10]} 25. b5 {[%clk 0:01:24]}  e4 {[%clk 0:01:07]} 26. Nd4 {[%clk 0:00:59]}  Nxd4 {[%clk 0:00:48]} 27. Qxd4 {[%clk 0:01:00]}  f4 {[%clk 0:00:49]} 28. Rxe4 {[%clk 0:00:56]}  Rxe4 {[%clk 0:00:48]} 29. Qxe4 {[%clk 0:00:57]}  f3 {[%clk 0:00:37]} 30. Qe7 {[%clk 0:00:50]}  Rg8 {[%clk 0:00:30]} 31. Rd8 {[%clk 0:00:39]}  h6 {[%clk 0:00:16]} 32. c5 {[%clk 0:00:23]}  Rxd8 {[%clk 0:00:06]} 33. Qxd8+ {[%clk 0:00:24]}  Kh7 {[%clk 0:00:06]} 34. Qg8+ {[%clk 0:00:23]}  Kg6 {[%clk 0:00:00]} 35. Bf7+ {[%clk 0:00:24]} 1-0


[Site "https://www.chess.com"]

[Event "Titled Tuesday Blitz July 18 Late 2023"]
[White "Schuster, Karsten"]
[Black "Shapiro, Viktor"]
[WhiteFideId "4611071"]
[BlackFideId "4175700"]
[WhiteElo "2323"]
[BlackElo "2493"]
[Result "1/2-1/2"]
[Round "2"]
[TimeControl "180+2"]
[Date "2023.07.18"]
[WhiteClock "0:00:33"]
[BlackClock "0:00:21"]
[Board "145"]

1. Nf3 {[%clk 0:03:00]}  Nf6 {[%clk 0:02:59]} 2. b3 {[%clk 0:03:00]}  c5 {[%clk 0:03:00]} 3. Bb2 {[%clk 0:03:00]}  Nc6 {[%clk 0:03:00]} 4. e3 {[%clk 0:03:00]}  g6 {[%clk 0:03:00]} 5. Be2 {[%clk 0:03:00]}  Bg7 {[%clk 0:03:00]} 6. O-O {[%clk 0:03:01]}  O-O {[%clk 0:03:00]} 7. c4 {[%clk 0:03:00]}  a6 {[%clk 0:02:57]} 8. d4 {[%clk 0:03:01]}  d6 {[%clk 0:02:56]} 9. d5 {[%clk 0:03:01]}  Na5 {[%clk 0:02:56]} 10. Bc3 {[%clk 0:02:52]}  b5 {[%clk 0:02:52]} 11. Qd2 {[%clk 0:02:51]}  b4 {[%clk 0:02:49]} 12. Bb2 {[%clk 0:02:51]}  Ne4 {[%clk 0:02:38]} 13. Qc1 {[%clk 0:02:50]}  Bxb2 {[%clk 0:02:36]} 14. Qxb2 {[%clk 0:02:50]}  e6 {[%clk 0:02:36]} 15. dxe6 {[%clk 0:02:49]}  Bxe6 {[%clk 0:02:33]} 16. Nbd2 {[%clk 0:02:49]}  Qf6 {[%clk 0:02:27]} 17. Qxf6 {[%clk 0:02:45]}  Nxf6 {[%clk 0:02:27]} 18. Ng5 {[%clk 0:02:42]}  Rad8 {[%clk 0:02:23]} 19. Rad1 {[%clk 0:02:35]}  Nc6 {[%clk 0:02:22]} 20. Nde4 {[%clk 0:02:32]}  Ne8 {[%clk 0:02:11]} 21. f4 {[%clk 0:02:25]}  h6 {[%clk 0:02:05]} 22. Nxe6 {[%clk 0:02:24]}  fxe6 {[%clk 0:02:05]} 23. Bf3 {[%clk 0:02:23]}  Kf7 {[%clk 0:01:34]} 24. Nxd6+ {[%clk 0:02:12]}  Nxd6 {[%clk 0:01:29]} 25. Bxc6 {[%clk 0:02:11]}  Nf5 {[%clk 0:01:30]} 26. Kf2 {[%clk 0:02:09]}  g5 {[%clk 0:01:24]} 27. g3 {[%clk 0:02:08]}  Ke7 {[%clk 0:01:23]} 28. Be4 {[%clk 0:02:03]}  Nd6 {[%clk 0:01:23]} 29. Bc2 {[%clk 0:01:59]}  e5 {[%clk 0:01:23]} 30. Ke2 {[%clk 0:01:55]}  exf4 {[%clk 0:01:16]} 31. exf4 {[%clk 0:01:54]}  gxf4 {[%clk 0:00:57]} 32. Rxf4 {[%clk 0:01:53]}  Rxf4 {[%clk 0:00:57]} 33. gxf4 {[%clk 0:01:53]}  Rg8 {[%clk 0:00:56]} 34. Kf3 {[%clk 0:01:51]}  Kd7 {[%clk 0:00:37]} 35. f5 {[%clk 0:01:41]}  Kc6 {[%clk 0:00:29]} 36. h4 {[%clk 0:01:34]}  h5 {[%clk 0:00:27]} 37. Re1 {[%clk 0:01:29]}  Rg4 {[%clk 0:00:20]} 38. Re6 {[%clk 0:01:23]}  Kd7 {[%clk 0:00:20]} 39. Re5 {[%clk 0:01:20]}  Rxh4 {[%clk 0:00:19]} 40. Rxc5 {[%clk 0:01:20]}  Rd4 {[%clk 0:00:20]} 41. Rd5 {[%clk 0:01:17]}  Rxd5 {[%clk 0:00:20]} 42. cxd5 {[%clk 0:01:17]}  Ke7 {[%clk 0:00:20]} 43. Kf4 {[%clk 0:01:16]}  Kf6 {[%clk 0:00:21]} 44. Bd3 {[%clk 0:01:13]}  a5 {[%clk 0:00:22]} 45. Be2 {[%clk 0:01:12]}  h4 {[%clk 0:00:23]} 46. Bg4 {[%clk 0:01:11]}  Nb5 {[%clk 0:00:23]} 47. Ke3 {[%clk 0:01:11]}  Nc3 {[%clk 0:00:23]} 48. d6 {[%clk 0:01:08]}  Nxa2 {[%clk 0:00:23]} 49. Kd4 {[%clk 0:01:08]}  Nc3 {[%clk 0:00:23]} 50. Kc4 {[%clk 0:01:08]}  Ne4 {[%clk 0:00:22]} 51. d7 {[%clk 0:01:07]}  Ke7 {[%clk 0:00:23]} 52. Kd5 {[%clk 0:01:02]}  Nf6+ {[%clk 0:00:24]} 53. Kc6 {[%clk 0:01:02]}  Kd8 {[%clk 0:00:23]} 54. Bh3 {[%clk 0:00:59]}  Nxd7 {[%clk 0:00:23]} 55. Kb5 {[%clk 0:00:59]}  Kc7 {[%clk 0:00:23]} 56. Kxa5 {[%clk 0:00:59]}  Kc6 {[%clk 0:00:23]} 57. Kxb4 {[%clk 0:00:59]}  Kd6 {[%clk 0:00:23]} 58. Kc4 {[%clk 0:00:58]}  Ne5+ {[%clk 0:00:23]} 59. Kc3 {[%clk 0:00:56]}  Nf3 {[%clk 0:00:24]} 60. b4 {[%clk 0:00:54]}  Ng5 {[%clk 0:00:25]} 61. Bg2 {[%clk 0:00:53]}  h3 {[%clk 0:00:25]} 62. Bh1 {[%clk 0:00:52]}  Ke5 {[%clk 0:00:24]} 63. b5 {[%clk 0:00:53]}  Nf7 {[%clk 0:00:24]} 64. b6 {[%clk 0:00:52]}  Nd8 {[%clk 0:00:25]} 65. Kc4 {[%clk 0:00:49]}  Kxf5 {[%clk 0:00:21]} 66. Kd5 {[%clk 0:00:49]}  Kf6 {[%clk 0:00:21]} 67. Kd6 {[%clk 0:00:49]}  h2 {[%clk 0:00:20]} 68. Kd7 {[%clk 0:00:49]}  Ne6 {[%clk 0:00:20]} 69. Kd6 {[%clk 0:00:46]}  Nd8 {[%clk 0:00:20]} 70. Kc7 {[%clk 0:00:46]}  Ke7 {[%clk 0:00:20]} 71. Bg2 {[%clk 0:00:43]}  Ne6+ {[%clk 0:00:20]} 72. Kc6 {[%clk 0:00:40]}  Nd8+ {[%clk 0:00:20]} 73. Kc7 {[%clk 0:00:39]}  Ne6+ {[%clk 0:00:20]} 74. Kc6 {[%clk 0:00:37]}  Nd8+ {[%clk 0:00:20]} 75. Kd5 {[%clk 0:00:36]}  Kd7 {[%clk 0:00:20]} 76. Ke5 {[%clk 0:00:35]}  Nc6+ {[%clk 0:00:18]} 77. Kf4 {[%clk 0:00:34]}  Na5 {[%clk 0:00:19]} 78. Kg3 {[%clk 0:00:34]}  Nc4 {[%clk 0:00:19]} 79. b7 {[%clk 0:00:33]}  Kc7 {[%clk 0:00:20]} 80. Kxh2 {[%clk 0:00:33]}  Nd6 {[%clk 0:00:20]} 81. Kg3 {[%clk 0:00:33]}  Nxb7 {[%clk 0:00:21]} 1/2-1/2


[Site "https://www.chess.com"]

[Event "Titled Tuesday Blitz July 18 Late 2023"]
[White "Jovic, Stanoje"]
[Black "kiwibobo"]
[WhiteFideId "905020"]
[WhiteElo "2489"]
[BlackElo "2310"]
[Result "1/2-1/2"]
[Round "2"]
[TimeControl "180+2"]
[Date "2023.07.18"]
[WhiteClock "0:00:31"]
[BlackClock "0:01:12"]
[Board "148"]

1. c4 {[%clk 0:03:00]}  Nf6 {[%clk 0:02:59]} 2. g3 {[%clk 0:03:01]}  g6 {[%clk 0:02:58]} 3. Bg2 {[%clk 0:03:01]}  c6 {[%clk 0:02:59]} 4. Nf3 {[%clk 0:02:59]}  Bg7 {[%clk 0:02:58]} 5. O-O {[%clk 0:02:59]}  O-O {[%clk 0:02:59]} 6. Nc3 {[%clk 0:02:58]}  d5 {[%clk 0:03:00]} 7. cxd5 {[%clk 0:02:58]}  cxd5 {[%clk 0:03:00]} 8. d4 {[%clk 0:02:58]}  Ne4 {[%clk 0:02:59]} 9. Ne5 {[%clk 0:02:58]}  Bf5 {[%clk 0:02:58]} 10. Qb3 {[%clk 0:02:53]}  Nc6 {[%clk 0:02:57]} 11. Nxc6 {[%clk 0:02:42]}  bxc6 {[%clk 0:02:55]} 12. Nxe4 {[%clk 0:02:42]}  Bxe4 {[%clk 0:02:46]} 13. Bxe4 {[%clk 0:02:41]}  dxe4 {[%clk 0:02:47]} 14. Rd1 {[%clk 0:02:39]}  Qb6 {[%clk 0:02:43]} 15. Qc4 {[%clk 0:02:27]}  Rfd8 {[%clk 0:02:42]} 16. Be3 {[%clk 0:02:22]}  Qxb2 {[%clk 0:02:37]} 17. Rab1 {[%clk 0:02:18]}  Qa3 {[%clk 0:02:35]} 18. Qxc6 {[%clk 0:02:13]}  Qxa2 {[%clk 0:02:34]} 19. Qxe4 {[%clk 0:02:11]}  Qxe2 {[%clk 0:02:31]} 20. Qxe7 {[%clk 0:02:04]}  Rxd4 {[%clk 0:02:29]} 21. Re1 {[%clk 0:01:56]}  Qc2 {[%clk 0:02:04]} 22. Rb7 {[%clk 0:01:41]}  Qf5 {[%clk 0:01:45]} 23. Bxd4 {[%clk 0:01:32]}  Bxd4 {[%clk 0:01:46]} 24. Re2 {[%clk 0:01:20]}  Rc8 {[%clk 0:01:42]} 25. Qe4 {[%clk 0:01:15]}  Bxf2+ {[%clk 0:01:41]} 26. Kg2 {[%clk 0:01:09]}  Qxe4+ {[%clk 0:01:40]} 27. Rxe4 {[%clk 0:01:09]}  Bb6 {[%clk 0:01:32]} 28. h4 {[%clk 0:01:07]}  h5 {[%clk 0:01:32]} 29. g4 {[%clk 0:01:06]}  hxg4 {[%clk 0:01:32]} 30. Rxg4 {[%clk 0:01:04]}  Rc5 {[%clk 0:01:28]} 31. Rf4 {[%clk 0:00:57]}  Rc2+ {[%clk 0:01:28]} 32. Kf1 {[%clk 0:00:51]}  Bc7 {[%clk 0:01:22]} 33. Rf2 {[%clk 0:00:39]}  Rxf2+ {[%clk 0:01:20]} 34. Kxf2 {[%clk 0:00:39]}  Bb6+ {[%clk 0:01:20]} 35. Kf3 {[%clk 0:00:39]}  Kg7 {[%clk 0:01:19]} 36. Kg4 {[%clk 0:00:38]}  Kf6 {[%clk 0:01:17]} 37. Rd7 {[%clk 0:00:35]}  Ke6 {[%clk 0:01:15]} 38. Rd1 {[%clk 0:00:32]}  Kf6 {[%clk 0:01:13]} 39. Rf1+ {[%clk 0:00:31]}  Ke6 {[%clk 0:01:12]} 40. Re1+ {[%clk 0:00:30]}  Kf6 {[%clk 0:01:11]} 41. Rf1+ {[%clk 0:00:31]}  Ke6 {[%clk 0:01:12]} 42. Re1+ {[%clk 0:00:31]}  Kf6 {[%clk 0:01:12]} 43. Rf1+ {[%clk 0:00:31]} 1/2-1/2


[Site "https://www.chess.com"]